[Event "GER-chT Youth Countries 2020"]
[Site "Berlin"]
[Date "2020.10.02"]
[Round "4"]
[White "Kiefhaber, Tobias"]
[Black "Sommer, Justus"]
[Result "1-0"]
[ECO "D43"]
[WhiteElo "1542"]
[BlackElo "1845"]
[Annotator "NA"]
[PlyCount "119"]
[EventDate "2020.09.30"]
[EventType "team-tourn"]
[EventRounds "7"]
[EventCountry "GER"]
[SourceTitle "playchess.com"]
[Source "ChessBase"]
[SourceQuality "1"]
[TimeControl "30/5400+30:0"]

1. d4 {[%emt 0:00:00]} Nf6 {[%emt 0:00:00]} 2. Nf3 {[%emt 0:00:00]} e6 {[%emt 0:00:00]} 3. c4 {[%emt 0:00:56]} d5 {[%emt 0:00:24]} 4. Nc3 {[%emt 0:00:32]} c6 {[%emt 0:00:07]} 5. Bg5 {[%emt 0:00:53]} Be7 {[%emt 0:00:15]} 6. e3 {[%emt 0:01:05]} Nbd7 {[%emt 0:00:36]} 7. Bd3 {[%emt 0:04:50]} dxc4 {[%emt 0:02:38]} 8. Bxc4 {[%emt 0:00:18]} b5 {[%emt 0:00:12]} 9. Bd3 {[%emt 0:03:04]} a6 {[%emt 0:01:02]} 10. Rc1 {[%emt 0:02:57]} c5 {[%emt 0:01:14]} 11. h4 {[%emt 0:03:01]} Bb7 {[%emt 0:02:19]} 12. h5 {[%emt 0:07:19]} h6 {[%emt 0:00:12]} 13. Bf4 {[%emt 0:07:51]} Qb6 {[%emt 0:02:46]} 14. Bb1 {[%emt 0:08:00]} Nd5 {[%emt 0:05:06]} 15. Nxd5 {[%emt 0:03:22]} Bxd5 {[%emt 0:00:30]} 16. e4 {[%emt 0:03:14]} Bb7 {[%emt 0:01:22]} 17. Be3 {[%emt 0:12:48]} Rd8 {[%emt 0:04:45]} 18. Qc2 {[%emt 0:05:17]} c4 {[%emt 0:04:08]} 19. d5 {[%emt 0:11:23]} Bb4+ {[%emt 0:02:44]} 20. Kf1 {[%emt 0:03:29]} Qd6 {[%emt 0:05:03]} 21. dxe6 {[%emt 0:02:33]} Qxe6 {[%emt 0:00:15]} 22. Nd4 {[%emt 0:01:56]} Qf6 {[%emt 0:02:22]} 23. Nf5 {[%emt 0:03:49]} Ne5 {[%emt 0:01:45]} 24. Bd4 {[%emt 0:02:59]} Rxd4 {[%emt 0:03:06]} 25. Nxd4 {[%emt 0:00:52]} Nd3 {[%emt 0:00:22]} 26. Nf3 {[%emt 0:01:23]} Nxc1 {[%emt 0:02:22]} 27. Qxc1 {[%emt 0:00:36]} Qe7 {[%emt 0:02:41]} 28. Qf4 {[%emt 0:02:55]} Qd6 {[%emt 0:03:25]} 29. Qxd6 {[%emt 0:01:21]} Bxd6 {[%emt 0:00:05]} 30. Ke2 {[%emt 0:00:49]} Kd7 {[%emt 0:02:22]} 31. Nd4 {[%emt 1:30:50]} Be5 {[%emt 1:30:40]} 32. Ke3 {[%emt 0:01:06]} Kc7 {[%emt 0:02:31]} 33. f4 {[%emt 0:01:39]} Bxd4+ {[%emt 0:00:04]} 34. Kxd4 {[%emt 0:00:10]} Re8 {[%emt 0:01:06]} 35. Re1 {[%emt 0:01:52]} Rd8+ {[%emt 0:01:01]} 36. Ke3 {[%emt 0:01:01]} Kb6 {[%emt 0:00:17]} 37. g4 {[%emt 0:01:05]} Bc8 {[%emt 0:01:01]} 38. g5 {[%emt 0:00:39]} b4 {[%emt 0:01:07]} 39. Rg1 {[%emt 0:00:51]} Kc5 {[%emt 0:00:35]} 40. gxh6 {[%emt 0:00:42]} gxh6 {[%emt 0:00:07]} 41. Rg7 {[%emt 0:00:00]} Rd7 {[%emt 0:00:00]} 42. Rh7 {[%emt 0:00:00]} Rd6 {[%emt 0:00:00]} 43. Rxf7 {[%emt 0:00:00]} Be6 {[%emt 0:00:00]} 44. Rf6 {[%emt 0:00:00]} Bg4 {[%emt 0:00:00]} 45. Rxd6 {[%emt 0:00:00]} Kxd6 {[%emt 0:00:00]} 46. e5+ {[%emt 0:00:00]} Ke6 {[%emt 0:00:00]} 47. Bg6 {[%emt 0:00:00]} c3 {[%emt 0:00:00]} 48. bxc3 {[%emt 0:00:00]} bxc3 {[%emt 0:00:00]} 49. Kd3 {[%emt 0:00:00]} Kd5 {[%emt 0:00:00]} 50. Kxc3 {[%emt 0:00:00]} Ke6 {[%emt 0:00:00]} 51. Kd4 {[%emt 0:00:00]} Ke7 {[%emt 0:00:00]} 52. f5 {[%emt 0:00:00]} Bd1 {[%emt 0:00:00]} 53. f6+ {[%emt 0:00:00]} Ke6 {[%emt 0:00:00]} 54. f7 {[%emt 0:00:00]} Ke7 {[%emt 0:00:00]} 55. Kc5 {[%emt 0:00:00]} Bg4 {[%emt 0:00:00]} 56. f8=Q+ {[%emt 0:00:00]} Kxf8 {[%emt 0:00:00]} 57. Kd6 {[%emt 0:00:00]} Kg7 {[%emt 0:00:00]} 58. e6 {[%emt 0:00:00]} a5 {[%emt 0:00:00]} 59. e7 {[%emt 0:00:00]} Be6 {[%emt 0:00:00]} 60. Kxe6 {[%emt 0:00:00]} 1-0

[Event "GER-chT Youth Countries 2020"]
[Site "Berlin"]
[Date "2020.10.02"]
[Round "4"]
[White "Kadach, Maria"]
[Black "Huppert, Anna"]
[Result "0-1"]
[ECO "A40"]
[WhiteElo "1539"]
[BlackElo "1440"]
[Annotator "NA"]
[PlyCount "67"]
[EventDate "2020.09.30"]
[EventType "team-tourn"]
[EventRounds "7"]
[EventCountry "GER"]
[SourceTitle "playchess.com"]
[Source "ChessBase"]
[SourceQuality "1"]
[TimeControl "30/5400+30:0"]

1. d4 {[%emt 0:00:00]} e6 {[%emt 0:00:00]} 2. Bf4 {[%emt 0:00:00]} d5 {[%emt 0:00:45]} 3. e3 {[%emt 0:00:01]} Nf6 {[%emt 0:01:47]} 4. c4 {[%emt 0:03:09]} Bb4+ {[%emt 0:10:20]} 5. Nc3 {[%emt 0:01:26]} Nc6 {[%emt 0:06:56]} 6. a3 {[%emt 0:02:56]} Be7 {[%emt 0:04:59]} 7. Nf3 {[%emt 0:05:14]} O-O {[%emt 0:04:29]} 8. Bd3 {[%emt 0:02:35]} dxc4 {[%emt 0:04:00]} 9. Bxc4 {[%emt 0:00:12]} b6 {[%emt 0:02:17]} 10. O-O {[%emt 0:02:47]} Bb7 {[%emt 0:03:23]} 11. Re1 {[%emt 0:01:10]} Nh5 {[%emt 0:12:39]} 12. Bg3 {[%emt 0:03:46]} Nxg3 {[%emt 0:02:59]} 13. hxg3 {[%emt 0:00:06]} Nb8 {[%emt 0:17:22]} 14. Bd3 {[%emt 0:09:39]} f5 {[%emt 0:08:24]} 15. Ne5 {[%emt 0:17:07]} Nd7 {[%emt 0:05:23]} 16. Qb3 {[%emt 0:10:53]} Nxe5 {[%emt 0:01:11]} 17. Qxe6+ {[%emt 0:11:02]} Nf7 {[%emt 0:00:48]} 18. Qxf5 {[%emt 0:00:28]} Ng5 {[%emt 0:01:48]} 19. Qg4 {[%emt 0:01:46]} Qd6 {[%emt 0:02:06]} 20. f4 {[%emt 0:04:40]} Nf7 {[%emt 0:02:23]} 21. Kf2 {[%emt 0:03:52]} Nh6 {[%emt 0:01:55]} 22. Qe2 {[%emt 0:04:21]} Rae8 {[%emt 0:00:50]} 23. Rh1 {[%emt 0:01:15]} Bc8 {[%emt 0:00:17]} 24. Ne4 {[%emt 0:02:14]} Qc6 {[%emt 0:01:00]} 25. Rac1 {[%emt 0:00:34]} Qb7 {[%emt 0:01:13]} 26. Rxh6 {[%emt 0:05:28]} gxh6 {[%emt 0:00:45]} 27. Qh5 {[%emt 0:00:31]} Bf5 {[%emt 0:00:41]} 28. Nf6+ {[%emt 0:02:19]} Bxf6 {[%emt 0:00:58]} 29. Qxf5 {[%emt 0:00:10]} c5 {[%emt 0:00:34]} 30. Rh1 {[%emt 0:01:57]} Bxd4 {[%emt 0:00:44]} 31. Qg4+ {[%emt 1:30:38]} Qg7 {[%emt 1:30:17]} 32. Qh5 {[%emt 0:02:27]} Bxe3+ {[%emt 0:00:41]} 33. Kf3 {[%emt 0:01:01]} Qb7+ {[%emt 0:01:08]} 34. Kg4 {[%emt 0:00:00]} 0-1

[Event "GER-chT Youth Countries 2020"]
[Site "Berlin"]
[Date "2020.10.02"]
[Round "4"]
[White "Werner, Florin"]
[Black "Berghold, Lotta"]
[Result "1-0"]
[ECO "B00"]
[WhiteElo "1481"]
[BlackElo "1411"]
[Annotator "NA"]
[PlyCount "81"]
[EventDate "2020.09.30"]
[EventType "team-tourn"]
[EventRounds "7"]
[EventCountry "GER"]
[SourceTitle "playchess.com"]
[Source "ChessBase"]
[SourceQuality "1"]
[TimeControl "30/5400+30:0"]

1. e4 {[%emt 0:00:00]} b6 {[%emt 0:00:00]} 2. d4 {[%emt 0:00:29]} Bb7 {[%emt 0:00:00]} 3. Bd3 {[%emt 0:01:34]} e6 {[%emt 0:00:00]} 4. Nf3 {[%emt 0:00:50]} Nf6 {[%emt 0:00:00]} 5. Nbd2 {[%emt 0:00:30]} Be7 {[%emt 0:00:20]} 6. O-O {[%emt 0:00:34]} O-O {[%emt 0:00:53]} 7. Re1 {[%emt 0:00:25]} d6 {[%emt 0:00:38]} 8. Nf1 {[%emt 0:01:02]} Nbd7 {[%emt 0:00:25]} 9. Ng3 {[%emt 0:01:16]} c5 {[%emt 0:01:23]} 10. e5 {[%emt 0:01:44]} Nd5 {[%emt 0:01:01]} 11. c3 {[%emt 0:00:30]} cxd4 {[%emt 0:02:10]} 12. cxd4 {[%emt 0:00:06]} dxe5 {[%emt 0:05:31]} 13. dxe5 {[%emt 0:00:09]} Re8 {[%emt 0:04:02]} 14. Nd4 {[%emt 0:04:14]} a6 {[%emt 0:03:05]} 15. Nh5 {[%emt 0:05:05]} Bf8 {[%emt 0:12:24]} 16. Nxg7 {[%emt 0:09:02]} Bxg7 {[%emt 0:04:41]} 17. Qh5 {[%emt 0:00:06]} Nf8 {[%emt 0:01:17]} 18. Nf3 {[%emt 0:02:28]} Nf4 {[%emt 0:18:44]} 19. Bxh7+ {[%emt 0:01:51]} Nxh7 {[%emt 0:00:07]} 20. Bxf4 {[%emt 0:00:05]} Bxf3 {[%emt 0:13:39]} 21. Qxf3 {[%emt 0:00:10]} Ra7 {[%emt 0:09:22]} 22. h3 {[%emt 0:02:56]} Qb8 23. Qg3 {[%emt 0:01:31]} Nf8 {[%emt 0:04:29]} 24. Re3 {[%emt 0:00:30]} Ng6 {[%emt 0:01:53]} 25. Rae1 {[%emt 0:01:03]} Rd7 {[%emt 0:04:25]} 26. h4 {[%emt 0:01:35]} Ne7 {[%emt 0:01:14]} 27. Qg5 {[%emt 0:03:27]} Nf5 {[%emt 0:00:53]} 28. Rb3 {[%emt 0:00:57]} b5 {[%emt 0:05:50]} 29. g4 {[%emt 0:01:03]} Nd4 {[%emt 0:00:53]} 30. Rg3 {[%emt 0:00:24]} Qb7 {[%emt 0:00:53]} 31. h5 {[%emt 1:31:25]} Ne2+ {[%emt 1:32:48]} 32. Kh2 {[%emt 0:00:26]} Nxf4 {[%emt 0:02:25]} 33. Qxf4 {[%emt 0:00:23]} f6 {[%emt 0:00:31]} 34. h6 {[%emt 0:00:56]} fxe5 {[%emt 0:00:22]} 35. Qg5 {[%emt 0:00:15]} Rf8 {[%emt 0:00:32]} 36. Rf1 {[%emt 0:02:26]} Qa7 {[%emt 0:00:35]} 37. Rg2 {[%emt 0:01:04]} Qd4 {[%emt 0:00:18]} 38. hxg7 {[%emt 0:03:58]} Rxg7 {[%emt 0:00:05]} 39. Qc1 {[%emt 0:00:06]} Rxg4 {[%emt 0:01:06]} 40. Rxg4+ {[%emt 0:02:33]} Qxg4 {[%emt 0:00:06]} 41. Rg1 {[%emt 0:00:26]} 1-0

[Event "GER-chT Youth Countries 2020"]
[Site "Berlin"]
[Date "2020.10.02"]
[Round "4"]
[White "Mueller, Sophie Charlotte"]
[Black "Rudolph, Eva"]
[Result "0-1"]
[ECO "B20"]
[WhiteElo "1459"]
[BlackElo "1836"]
[Annotator "NA"]
[PlyCount "56"]
[EventDate "2020.09.30"]
[EventType "team-tourn"]
[EventRounds "7"]
[EventCountry "GER"]
[SourceTitle "playchess.com"]
[Source "ChessBase"]
[SourceQuality "1"]
[TimeControl "30/5400+30:0"]

1. e4 {[%emt 0:00:00]} c5 {[%emt 0:00:00]} 2. b4 {[%emt 0:00:00]} cxb4 {[%emt 0:03:38]} 3. d4 {[%emt 0:00:00]} d6 {[%emt 0:00:48]} 4. a3 {[%emt 0:01:58]} Nf6 {[%emt 0:08:42]} 5. Bd3 {[%emt 0:01:53]} Nc6 {[%emt 0:05:40]} 6. Bb5 {[%emt 0:08:38]} Bd7 {[%emt 0:02:11]} 7. d5 {[%emt 0:08:58]} Ne5 {[%emt 0:02:14]} 8. Bxd7+ {[%emt 0:00:16]} Qxd7 {[%emt 0:02:00]} 9. f3 {[%emt 0:02:58]} g6 {[%emt 0:12:50]} 10. axb4 {[%emt 0:02:51]} Qb5 {[%emt 0:09:56]} 11. Qd4 {[%emt 0:05:08]} Bg7 {[%emt 0:03:35]} 12. Nc3 {[%emt 0:03:37]} Qc4 {[%emt 0:02:46]} 13. Be3 {[%emt 0:16:15]} Nfd7 {[%emt 0:06:03]} 14. Qxc4 {[%emt 0:05:37]} Nxc4 {[%emt 0:00:08]} 15. Bd2 {[%emt 0:01:36]} Nde5 {[%emt 0:09:16]} 16. Ra2 {[%emt 0:06:58]} Kd7 {[%emt 0:06:12]} 17. Nb1 {[%emt 0:04:32]} Rhc8 {[%emt 0:04:26]} 18. Bc1 {[%emt 0:03:11]} a5 {[%emt 0:02:33]} 19. bxa5 {[%emt 0:02:27]} Rxa5 {[%emt 0:00:27]} 20. Rxa5 Nxa5 21. Na3 {[%emt 0:03:12]} Nac4 {[%emt 0:02:27]} 22. Kd1 {[%emt 0:01:27]} Ra8 {[%emt 0:03:12]} 23. f4 {[%emt 0:01:04]} Nxa3 {[%emt 0:04:49]} 24. fxe5 {[%emt 0:01:23]} Nc4 {[%emt 0:02:44]} 25. Nf3 {[%emt 0:03:15]} Ra1 {[%emt 0:01:14]} 26. e6+ {[%emt 0:03:21]} fxe6 {[%emt 0:00:43]} 27. dxe6+ {[%emt 0:00:08]} Kxe6 {[%emt 0:00:13]} 28. Ng5+ {[%emt 0:00:36]} Kd7 {[%emt 0:00:24]} 0-1

[Event "GER-chT Youth Countries 2020"]
[Site "Berlin"]
[Date "2020.10.02"]
[Round "4"]
[White "Ottlik, Marie"]
[Black "Reich, Elisabeth"]
[Result "1-0"]
[ECO "B75"]
[WhiteElo "1454"]
[BlackElo "1128"]
[Annotator "NA"]
[PlyCount "173"]
[EventDate "2020.09.30"]
[EventType "team-tourn"]
[EventRounds "7"]
[EventCountry "GER"]
[SourceTitle "playchess.com"]
[Source "ChessBase"]
[SourceQuality "1"]
[TimeControl "30/5400+30:0"]

1. e4 {[%emt 0:00:00]} c5 {[%emt 0:00:00]} 2. Nf3 {[%emt 0:00:00]} d6 {[%emt 0:00:00]} 3. d4 {[%emt 0:00:00]} cxd4 {[%emt 0:00:00]} 4. Nxd4 {[%emt 0:00:00]} Nf6 {[%emt 0:00:00]} 5. Nc3 {[%emt 0:00:14]} g6 {[%emt 0:00:00]} 6. Be3 {[%emt 0:00:35]} Bg7 {[%emt 0:00:00]} 7. f3 {[%emt 0:00:13]} Nc6 {[%emt 0:00:04]} 8. Qd2 {[%emt 0:02:39]} h5 {[%emt 0:00:22]} 9. O-O-O {[%emt 0:03:13]} Bd7 {[%emt 0:00:22]} 10. h3 {[%emt 0:11:34]} a6 {[%emt 0:01:03]} 11. Be2 {[%emt 0:04:22]} b5 {[%emt 0:01:28]} 12. g4 {[%emt 0:01:36]} Qc8 {[%emt 0:01:13]} 13. Nxc6 {[%emt 0:08:47]} Bxc6 {[%emt 0:00:23]} 14. Bd4 {[%emt 0:03:01]} Rh7 {[%emt 0:01:36]} 15. g5 {[%emt 0:09:07]} Nd7 {[%emt 0:00:32]} 16. Bxg7 {[%emt 0:00:21]} Rxg7 {[%emt 0:00:07]} 17. Nd5 {[%emt 0:02:33]} Bxd5 {[%emt 0:03:09]} 18. Qxd5 {[%emt 0:00:32]} Rb8 {[%emt 0:01:24]} 19. Qd4 {[%emt 0:03:39]} Rg8 {[%emt 0:00:36]} 20. f4 {[%emt 0:02:57]} Qc5 {[%emt 0:00:46]} 21. h4 {[%emt 0:07:50]} Qxd4 {[%emt 0:00:53]} 22. Rxd4 {[%emt 0:00:33]} Nc5 {[%emt 0:00:26]} 23. Rf1 {[%emt 0:03:10]} Ne6 {[%emt 0:01:03]} 24. Rd5 {[%emt 0:05:29]} Rh8 {[%emt 0:01:05]} 25. f5 {[%emt 0:04:13]} gxf5 {[%emt 0:00:29]} 26. exf5 {[%emt 0:00:27]} Nc5 {[%emt 0:00:16]} 27. f6 {[%emt 0:02:16]} exf6 {[%emt 0:00:33]} 28. Rxf6 {[%emt 0:00:42]} Ne4 {[%emt 0:00:43]} 29. Rf3 {[%emt 0:02:37]} Rb7 {[%emt 0:01:49]} 30. Bd3 {[%emt 0:01:37]} Re7 {[%emt 0:01:03]} 31. Re3 {[%emt 1:34:08]} Nf2 {[%emt 1:30:45]} 32. Rxe7+ {[%emt 0:00:22]} Kxe7 {[%emt 0:00:15]} 33. Rf5 {[%emt 0:01:02]} Nxd3+ {[%emt 0:00:29]} 34. cxd3 {[%emt 0:00:08]} Ke6 {[%emt 0:01:20]} 35. Rf6+ {[%emt 0:00:28]} Ke7 {[%emt 0:00:19]} 36. Kd2 {[%emt 0:01:21]} Rh7 {[%emt 0:00:37]} 37. Ke3 {[%emt 0:00:42]} Rh8 {[%emt 0:00:15]} 38. Kd2 {[%emt 0:01:24]} a5 {[%emt 0:00:45]} 39. a3 {[%emt 0:02:34]} b4 {[%emt 0:01:42]} 40. axb4 {[%emt 0:01:25]} axb4 {[%emt 0:00:10]} 41. Rf4 {[%emt 0:00:06]} Rb8 {[%emt 0:00:28]} 42. b3 {[%emt 0:00:36]} Rb6 {[%emt 0:01:55]} 43. Ke3 {[%emt 0:04:40]} Rb8 {[%emt 0:00:41]} 44. Re4+ {[%emt 0:01:33]} Kd7 {[%emt 0:00:48]} 45. Rf4 {[%emt 0:01:32]} Ke7 {[%emt 0:00:13]} 46. Rd4 {[%emt 0:00:42]} Rb6 {[%emt 0:00:50]} 47. Kf4 {[%emt 0:01:36]} Rb5 {[%emt 0:01:03]} 48. Ke3 {[%emt 0:02:27]} Rb6 {[%emt 0:00:16]} 49. Rd5 {[%emt 0:01:34]} Rb8 {[%emt 0:00:28]} 50. Rf5 {[%emt 0:00:00]} Rb6 {[%emt 0:00:00]} 51. Kd4 {[%emt 0:00:00]} Rb8 {[%emt 0:00:00]} 52. Kc4 {[%emt 0:00:00]} Rb7 {[%emt 0:00:00]} 53. Rb5 {[%emt 0:00:00]} Rxb5 {[%emt 0:00:00]} 54. Kxb5 {[%emt 0:00:00]} f6 {[%emt 0:00:00]} 55. gxf6+ {[%emt 0:00:00]} Kxf6 {[%emt 0:00:00]} 56. Kxb4 {[%emt 0:00:00]} Kf5 {[%emt 0:00:00]} 57. Kc3 {[%emt 0:00:00]} Kg4 {[%emt 0:00:00]} 58. b4 {[%emt 0:00:00]} Kxh4 {[%emt 0:00:00]} 59. b5 {[%emt 0:00:00]} Kg4 {[%emt 0:00:00]} 60. b6 {[%emt 0:00:00]} h4 {[%emt 0:00:00]} 61. b7 {[%emt 1:08:56]} h3 {[%emt 1:05:10]} 62. b8=Q {[%emt 0:00:09]} h2 {[%emt 0:00:10]} 63. Qg8+ {[%emt 0:00:15]} Kf3 {[%emt 0:00:21]} 64. Qh7 {[%emt 0:00:27]} Kg2 {[%emt 0:00:06]} 65. Kc4 {[%emt 0:00:22]} h1=Q {[%emt 0:00:12]} 66. Qxh1+ {[%emt 0:00:08]} Kxh1 {[%emt 0:00:02]} 67. Kd5 {[%emt 0:00:07]} Kg2 {[%emt 0:00:08]} 68. d4 {[%emt 0:00:40]} Kf3 69. Kxd6 {[%emt 0:00:21]} Ke4 {[%emt 0:00:23]} 70. Kc5 {[%emt 0:00:08]} Kf5 {[%emt 0:00:23]} 71. Kc6 {[%emt 0:00:38]} Ke6 {[%emt 0:00:21]} 72. d5+ {[%emt 0:00:20]} Ke7 {[%emt 0:00:06]} 73. Kc7 {[%emt 0:00:06]} Ke8 {[%emt 0:00:13]} 74. d6 {[%emt 0:00:08]} Kf7 {[%emt 0:00:05]} 75. d7 {[%emt 0:00:06]} Ke6 {[%emt 0:00:36]} 76. d8=Q {[%emt 0:00:43]} Ke5 {[%emt 0:00:11]} 77. Kc6 {[%emt 0:00:13]} Ke6 {[%emt 0:00:08]} 78. Qd6+ {[%emt 0:00:25]} Kf5 {[%emt 0:00:06]} 79. Qe7 {[%emt 0:00:11]} Kf4 {[%emt 0:00:13]} 80. Kd5 {[%emt 0:00:10]} Kf5 {[%emt 0:00:06]} 81. Qe5+ {[%emt 0:00:09]} Kg6 {[%emt 0:00:25]} 82. Qf4 {[%emt 0:00:06]} Kg7 {[%emt 0:00:20]} 83. Ke6 {[%emt 0:00:12]} Kg6 {[%emt 0:00:13]} 84. Qf6+ {[%emt 0:00:19]} Kh7 {[%emt 0:00:23]} 85. Qg5 {[%emt 0:00:10]} Kh8 {[%emt 0:00:14]} 86. Kf7 {[%emt 0:00:07]} Kh7 {[%emt 0:00:10]} 87. Qg7# {[%emt 0:00:04]} 1-0

[Event "GER-chT Youth Countries 2020"]
[Site "Berlin"]
[Date "2020.10.02"]
[Round "4"]
[White "Haug, Mara"]
[Black "Margaryan, Susanna"]
[Result "1-0"]
[ECO "B43"]
[WhiteElo "1366"]
[BlackElo "1450"]
[Annotator "NA"]
[PlyCount "54"]
[EventDate "2020.09.30"]
[EventType "team-tourn"]
[EventRounds "7"]
[EventCountry "GER"]
[SourceTitle "playchess.com"]
[Source "ChessBase"]
[SourceQuality "1"]
[TimeControl "30/5400+30:0"]

1. e4 {[%emt 0:00:00]} c5 {[%emt 0:00:00]} 2. Nf3 {[%emt 0:00:00]} e6 {[%emt 0:00:00]} 3. d4 {[%emt 0:00:00]} cxd4 {[%emt 0:00:00]} 4. Nxd4 {[%emt 0:00:00]} a6 {[%emt 0:00:32]} 5. Nc3 {[%emt 0:00:39]} Qc7 {[%emt 0:00:43]} 6. Be2 {[%emt 0:02:41]} Bb4 {[%emt 0:01:09]} 7. Bd2 {[%emt 0:03:03]} Nf6 {[%emt 0:02:05]} 8. f3 {[%emt 0:06:46]} O-O {[%emt 0:00:42]} 9. O-O {[%emt 0:05:33]} Nc6 {[%emt 0:04:51]} 10. Nb3 {[%emt 0:02:32]} b5 {[%emt 0:05:16]} 11. Qe1 {[%emt 0:02:57]} Be7 {[%emt 0:12:17]} 12. a3 {[%emt 0:04:03]} Rd8 {[%emt 0:04:37]} 13. Be3 {[%emt 0:07:16]} d5 {[%emt 0:03:23]} 14. exd5 {[%emt 0:00:38]} Nxd5 {[%emt 0:00:30]} 15. Nxd5 {[%emt 0:00:44]} Rxd5 {[%emt 0:00:54]} 16. Bd3 {[%emt 0:04:20]} Bb7 {[%emt 0:03:03]} 17. f4 {[%emt 0:05:56]} Bf6 {[%emt 0:08:04]} 18. Rb1 {[%emt 0:02:55]} h6 {[%emt 0:09:17]} 19. Nc5 {[%emt 0:04:41]} Be7 {[%emt 0:05:08]} 20. Nxb7 {[%emt 0:03:34]} Qxb7 {[%emt 0:00:08]} 21. Qg3 {[%emt 0:03:49]} Bc5 {[%emt 0:03:41]} 22. Bxc5 {[%emt 0:02:27]} Rxc5 {[%emt 0:00:18]} 23. Be4 {[%emt 0:02:26]} Qc7 {[%emt 0:02:51]} 24. b4 {[%emt 0:02:31]} Rc4 {[%emt 0:01:11]} 25. Qe3 {[%emt 0:09:50]} Rd8 {[%emt 0:02:47]} 26. c3 {[%emt 0:03:45]} Ne7 {[%emt 0:04:14]} 27. Rbc1 {[%emt 0:01:59]} a5 {[%emt 0:02:20]} 1-0

[Event "GER-chT Youth Countries 2020"]
[Site "Berlin"]
[Date "2020.10.02"]
[Round "4"]
[White "Khanbekyan, Nare"]
[Black "Trunz, Michelle"]
[Result "0-1"]
[ECO "B90"]
[WhiteElo "1334"]
[BlackElo "1662"]
[Annotator "NA"]
[PlyCount "56"]
[EventDate "2020.09.30"]
[EventType "team-tourn"]
[EventRounds "7"]
[EventCountry "GER"]
[SourceTitle "playchess.com"]
[Source "ChessBase"]
[SourceQuality "1"]
[TimeControl "30/5400+30:0"]

1. e4 {[%emt 0:00:00]} c5 {[%emt 0:00:00]} 2. Nf3 {[%emt 0:00:00]} d6 {[%emt 0:00:00]} 3. d4 {[%emt 0:00:00]} cxd4 {[%emt 0:00:13]} 4. Nxd4 {[%emt 0:00:00]} Nf6 {[%emt 0:00:23]} 5. Nc3 {[%emt 0:00:10]} a6 {[%emt 0:00:07]} 6. f3 {[%emt 0:00:10]} e5 {[%emt 0:01:43]} 7. Nb3 {[%emt 0:00:23]} Be6 {[%emt 0:00:33]} 8. Be3 {[%emt 0:00:57]} Be7 {[%emt 0:00:32]} 9. Qd2 {[%emt 0:00:34]} O-O {[%emt 0:00:38]} 10. O-O-O {[%emt 0:00:21]} Nc6 {[%emt 0:00:16]} 11. g4 {[%emt 0:00:29]} b5 {[%emt 0:00:52]} 12. h4 {[%emt 0:00:26]} Qc7 {[%emt 0:01:26]} 13. h5 {[%emt 0:01:13]} b4 {[%emt 0:02:01]} 14. Na4 {[%emt 0:02:29]} Rfb8 {[%emt 0:01:22]} 15. g5 {[%emt 0:02:02]} Nd7 {[%emt 0:00:42]} 16. g6 {[%emt 0:01:33]} Na5 {[%emt 0:01:42]} 17. gxh7+ {[%emt 0:04:31]} Kxh7 {[%emt 0:00:47]} 18. h6 {[%emt 0:02:49]} g6 {[%emt 0:02:44]} 19. Nxa5 {[%emt 0:05:37]} Qxa5 {[%emt 0:00:19]} 20. b3 {[%emt 0:00:59]} Nc5 {[%emt 0:02:11]} 21. Bxc5 {[%emt 0:09:55]} dxc5 {[%emt 0:00:25]} 22. c4 {[%emt 0:00:30]} Rd8 {[%emt 0:06:09]} 23. Qe3 {[%emt 0:03:57]} Rxd1+ {[%emt 0:01:37]} 24. Kxd1 {[%emt 0:00:22]} Bd7 {[%emt 0:00:30]} 25. Nxc5 {[%emt 0:05:56]} Qxc5 {[%emt 0:00:41]} 26. Qd2 {[%emt 0:01:45]} Rd8 {[%emt 0:00:24]} 27. Kc2 {[%emt 0:05:36]} Be6 {[%emt 0:00:41]} 28. Qh2 {[%emt 0:01:07]} Qd4 {[%emt 0:00:29]} 0-1

[Event "GER-chT Youth Countries 2020"]
[Site "Berlin"]
[Date "2020.10.02"]
[Round "4"]
[White "Alhassan, Jodi"]
[Black "Moldovan, Tatiana"]
[Result "1/2-1/2"]
[ECO "B28"]
[WhiteElo "1275"]
[BlackElo "1480"]
[Annotator "NA"]
[PlyCount "98"]
[EventDate "2020.09.30"]
[EventType "team-tourn"]
[EventRounds "7"]
[EventCountry "GER"]
[SourceTitle "playchess.com"]
[Source "ChessBase"]
[SourceQuality "1"]
[TimeControl "30/5400+30:0"]

1. e4 {[%emt 0:00:00]} c5 {[%emt 0:02:15]} 2. Nf3 {[%emt 0:00:00]} a6 {[%emt 0:02:24]} 3. d4 {[%emt 0:00:23]} cxd4 {[%emt 0:07:31]} 4. Nxd4 {[%emt 0:00:32]} Nf6 {[%emt 0:09:26]} 5. Nc3 {[%emt 0:01:05]} e5 {[%emt 0:04:36]} 6. Nb3 {[%emt 0:08:45]} Bb4 {[%emt 0:06:13]} 7. Bg5 {[%emt 0:25:33]} h6 {[%emt 0:05:57]} 8. Bh4 {[%emt 0:07:28]} Nc6 {[%emt 0:07:52]} 9. Bc4 {[%emt 0:11:00]} b5 {[%emt 0:05:33]} 10. Bd3 {[%emt 0:04:03]} Bb7 {[%emt 0:03:17]} 11. O-O {[%emt 0:03:37]} Bxc3 {[%emt 0:03:24]} 12. bxc3 {[%emt 0:01:50]} d6 {[%emt 0:00:51]} 13. Re1 {[%emt 0:03:24]} O-O {[%emt 0:03:51]} 14. Be2 {[%emt 0:03:25]} Nb8 {[%emt 0:01:39]} 15. Bd3 {[%emt 0:02:58]} Nbd7 {[%emt 0:06:01]} 16. c4 {[%emt 0:03:33]} bxc4 {[%emt 0:01:17]} 17. Bxc4 {[%emt 0:01:02]} Qc7 {[%emt 0:06:02]} 18. Bd3 {[%emt 0:01:15]} d5 {[%emt 0:03:48]} 19. Nd2 {[%emt 0:07:42]} Rfe8 {[%emt 0:02:04]} 20. Rb1 {[%emt 0:02:13]} Rab8 {[%emt 0:00:47]} 21. Rc1 {[%emt 0:01:42]} dxe4 {[%emt 0:02:58]} 22. Nxe4 {[%emt 0:00:56]} Nxe4 {[%emt 0:01:30]} 23. Bxe4 {[%emt 0:00:33]} Bxe4 {[%emt 0:00:06]} 24. Rxe4 {[%emt 0:00:35]} Rb2 {[%emt 0:01:47]} 25. a4 {[%emt 0:03:31]} f5 {[%emt 0:00:38]} 26. Qd5+ {[%emt 0:00:57]} Kh8 {[%emt 0:00:37]} 27. Rc4 {[%emt 0:02:10]} Qb7 {[%emt 0:00:55]} 28. Qxb7 {[%emt 0:00:41]} Rxb7 {[%emt 0:00:07]} 29. f3 {[%emt 0:00:44]} Rb2 {[%emt 0:01:07]} 30. a5 {[%emt 0:01:04]} e4 {[%emt 0:03:54]} 31. fxe4 {[%emt 1:31:00]} fxe4 {[%emt 1:30:03]} 32. Re1 {[%emt 0:00:56]} e3 {[%emt 0:00:10]} 33. Rd4 {[%emt 0:00:25]} Nf6 {[%emt 0:00:56]} 34. Bxf6 {[%emt 0:00:26]} gxf6 {[%emt 0:00:05]} 35. Rd3 {[%emt 0:00:12]} Rxc2 {[%emt 0:00:59]} 36. Rdxe3 {[%emt 0:01:06]} Rxe3 {[%emt 0:00:21]} 37. Rxe3 {[%emt 0:00:03]} Ra2 {[%emt 0:00:05]} 38. Re6 {[%emt 0:00:32]} Rxa5 {[%emt 0:00:15]} 39. Rxf6 {[%emt 0:00:15]} Kg7 40. Rb6 {[%emt 0:01:14]} h5 {[%emt 0:01:13]} 41. Kf2 {[%emt 0:00:18]} Kf7 {[%emt 0:00:06]} 42. Ke3 {[%emt 0:00:00]} Ke7 {[%emt 0:00:00]} 43. Rb2 {[%emt 0:00:00]} Kd6 {[%emt 0:00:00]} 44. Kd3 {[%emt 0:00:00]} Kc5 {[%emt 0:00:00]} 45. Kc3 {[%emt 0:00:00]} Ra1 {[%emt 0:00:00]} 46. g3 {[%emt 0:00:00]} a5 {[%emt 0:00:00]} 47. Kc2 {[%emt 0:00:00]} Kc4 {[%emt 0:00:00]} 48. Rb1 {[%emt 0:00:00]} Ra3 {[%emt 0:00:00]} 49. Rb2 {[%emt 0:00:00]} a4 {[%emt 0:00:00]} 1/2-1/2